bitfinex-derivatives/quotes_BTCF0:USTF0_20250127
["timestamp","ask_amount","ask_price","bid_price","bid_amount"]
[1737942519238,0.3608,101650.0,101640.0,0.89860731]
[1737942520252,0.557661,101650.0,101640.0,0.89860731]
[1737942521037,0.69716567,101650.0,101640.0,0.89860731]
[1737942524755,1.13667034,101650.0,101640.0,0.61182908]
[1737942525050,0.93980934,101650.0,101630.0,0.35235932]
[1737942525252,1.05968934,101640.0,101630.0,0.35235932]
[1737942526043,0.1969,101630.0,101620.0,0.41123336]
[1737942526247,0.75640467,101630.0,101620.0,0.40049786]
[1737942526448,0.75640467,101630.0,101620.0,0.21689786]
[1737942526647,0.71000438,101630.0,101620.0,0.12509786]
[1737942526856,0.196948,101610.0,101590.0,0.20505101]
[1737942527058,0.09310438,101600.0,101590.0,0.20505101]
[1737942527250,0.09310438,101600.0,101590.0,0.00807501]
[1737942527450,0.09310438,101600.0,101580.0,0.6739632]
[1737942527949,0.09325187,101600.0,101580.0,0.6739632]
[1737942528153,0.19785187,101600.0,101580.0,0.6739632]
[1737942528551,0.19785187,101600.0,101590.0,0.003]
[1737942528854,0.19885187,101600.0,101590.0,0.003]
[1737942529047,0.39580987,101600.0,101590.0,0.003]
[1737942529861,0.75660987,101600.0,101590.0,0.003]
[1737942530045,0.75660987,101600.0,101580.0,0.32413606]
[1737942530350,0.75660987,101600.0,101580.0,0.32813606]
[1737942530953,0.75660987,101600.0,101590.0,0.003]
[1737942531159,0.75660987,101600.0,101590.0,0.007]
[1737942531755,0.75660987,101600.0,101590.0,0.004]
[1737942531956,0.75660987,101600.0,101580.0,0.32913606]
[1737942532459,0.75560987,101600.0,101590.0,0.004]
[1737942532664,0.75660987,101600.0,101590.0,0.004]
[1737942533157,0.75660987,101600.0,101580.0,0.32913606]
[1737942533363,0.75660987,101600.0,101590.0,0.003]
[1737942534059,0.10574749,101600.0,101590.0,0.199977]
[1737942534368,0.10574749,101600.0,101590.0,0.196977]
[1737942534554,0.19885187,101600.0,101590.0,0.196977]
[1737942534865,0.19885187,101600.0,101590.0,0.200977]
[1737942536259,0.19885187,101600.0,101590.0,0.007]
[1737942537658,0.09425187,101600.0,101590.0,0.007]
[1737942537871,0.00114749,101600.0,101590.0,0.203977]
[1737942538367,0.00114749,101600.0,101590.0,0.564777]
[1737942538561,0.00114749,101600.0,101590.0,0.65788138]
[1737942538766,0.11646766,101610.0,101600.0,0.196958]
[1737942538952,0.11646766,101610.0,101600.0,0.616458]
[1737942539765,0.22106766,101620.0,101610.0,0.196939]
[1737942539959,0.31431953,101620.0,101610.0,0.252739]
[1737942540556,0.87203853,101620.0,101610.0,0.0558]
[1737942540757,0.51123853,101620.0,101610.0,0.0558]
[1737942540967,0.11661515,101620.0,101610.0,0.50970438]
[1737942541159,0.11661515,101620.0,101610.0,0.70764338]
[1737942541365,0.11661515,101620.0,101610.0,0.614539]
[1737942541868,0.11661515,101620.0,101610.0,0.314139]
[1737942542269,0.76743853,101620.0,101610.0,0.0608]
[1737942542467,0.196958,101600.0,101590.0,0.06054749]
[1737942542666,0.196958,101600.0,101590.0,0.00014749]
[1737942542667,0.75546238,101600.0,101590.0,0.00014749]
[1737942542871,0.196977,101590.0,101580.0,0.1187]
[1737942543164,0.65088138,101590.0,101580.0,0.1187]
[1737942543566,0.65088138,101590.0,101580.0,0.0593]
[1737942543770,0.45390438,101590.0,101570.0,0.06071661]
[1737942543973,0.65090138,101580.0,101570.0,0.06071661]
[1737942545366,0.65090138,101580.0,101570.0,0.06171661]
[1737942545968,0.3608,101580.0,101570.0,0.06171661]
[1737942546172,0.3608,101580.0,101570.0,0.25873261]
[1737942546573,0.3608,101580.0,101570.0,0.06171661]
[1737942546769,0.65090138,101580.0,101570.0,0.06171661]
[1737942547764,0.45390438,101580.0,101570.0,0.06171661]
[1737942547965,0.09310438,101580.0,101570.0,0.06171661]
[1737942548375,0.65736835,101590.0,101570.0,0.06171661]
[1737942549277,0.45390438,101580.0,101570.0,0.06171661]
[1737942549479,0.74400576,101580.0,101570.0,0.00131661]
[1737942549776,0.85580576,101580.0,101570.0,0.00131661]
[1737942549979,0.76270138,101580.0,101570.0,0.00131661]
[1737942550767,0.76270138,101580.0,101570.0,0.001]
[1737942551164,0.76570138,101580.0,101560.0,0.1187]
[1737942551367,0.557816,101570.0,101560.0,0.1187]
[1737942551875,0.197016,101570.0,101560.0,0.1187]
[1737942552069,0.29012038,101570.0,101560.0,0.1187]
[1737942552272,0.29012038,101570.0,101560.0,0.13409919]
[1737942552976,0.197016,101570.0,101560.0,0.11904002]
[1737942553173,0.29012038,101570.0,101560.0,0.11904002]
[1737942553379,0.29012038,101570.0,101560.0,0.12004002]
[1737942554069,0.197016,101570.0,101560.0,0.12004002]
[1737942554265,0.67441515,101580.0,101560.0,0.33247472]
[1737942554470,0.67441515,101580.0,101560.0,0.4255791]
[1737942554781,0.77901515,101580.0,101560.0,0.7709804]
[1737942556267,0.11661515,101580.0,101570.0,0.65092038]
[1737942556474,0.11661515,101580.0,101560.0,0.7709764]
[1737942556676,0.11661515,101580.0,101560.0,0.67787202]
[1737942556677,0.76751853,101580.0,101560.0,0.67787202]
[1737942556879,0.67441415,101580.0,101560.0,0.67787202]
[1737942557078,0.55794649,101580.0,101560.0,0.7709764]
[1737942557680,0.65205087,101580.0,101560.0,0.48084002]
[1737942558184,0.65105087,101580.0,101560.0,0.48084002]
[1737942558369,0.65105087,101580.0,101560.0,0.12004002]
[1737942558571,0.29012038,101570.0,101560.0,0.06064002]
[1737942558771,0.40452038,101570.0,101560.0,0.06064002]
[1737942558981,0.40452038,101570.0,101560.0,0.00134002]
[1737942559575,0.40452038,101570.0,101560.0,0.01673847]
[1737942559968,0.40452038,101570.0,101560.0,0.00134002]
[1737942560781,0.76532038,101570.0,101560.0,0.00134002]
[1737942562478,0.76532038,101570.0,101560.0,0.01673941]
[1737942565191,0.86988038,101570.0,101560.0,0.01673941]
[1737942565374,0.50908038,101570.0,101560.0,0.01673941]
[1737942565578,1.07374541,101570.0,101560.0,0.01673941]
[1737942565879,0.71294541,101570.0,101560.0,0.01673941]
[1737942566288,0.71937537,101570.0,101560.0,0.01673941]
[1737942566485,1.08017537,101570.0,101560.0,0.01673941]
[1737942566872,0.197051,101560.0,101540.0,0.41637709]
[1737942567077,0.09310438,101550.0,101540.0,0.41637709]
[1737942567278,0.65095538,101560.0,101540.0,0.41637709]
[1737942567474,0.19719849,101560.0,101540.0,0.61344209]
[1737942567685,0.00014749,101560.0,101550.0,0.3608]
[1737942568186,0.00014749,101560.0,101550.0,0.557855]
[1737942568593,0.00014749,101560.0,101550.0,2.057855]
[1737942568886,0.00014749,101560.0,101550.0,2.07309962]
[1737942569189,0.00014749,101560.0,101550.0,0.57309962]
[1737942569484,0.08754486,101560.0,101550.0,0.57309962]
[1737942569888,0.08754486,101560.0,101550.0,0.557855]
[1737942570077,0.08754486,101560.0,101550.0,0.558855]
[1737942570774,0.08754486,101560.0,101550.0,0.57413003]
[1737942571391,0.28458086,101560.0,101550.0,0.57413003]
[1737942571687,0.08754486,101560.0,101550.0,0.57413003]
[1737942572389,0.00014749,101560.0,101550.0,0.57413003]
[1737942574376,0.00014749,101560.0,101550.0,0.667358]
[1737942574684,0.00014749,101560.0,101550.0,0.75358889]
[1737942575986,0.00014749,101560.0,101550.0,0.71047428]
[1737942576689,0.08754486,101560.0,101550.0,0.71047428]
[1737942577195,0.08754486,101560.0,101550.0,0.667358]
[1737942578489,0.08754486,101560.0,101550.0,0.71047151]
[1737942579093,0.08754486,101560.0,101550.0,0.61736713]
[1737942579388,0.08754486,101560.0,101550.0,0.57425362]
[1737942579592,0.08754486,101560.0,101550.0,0.68275569]
[1737942579787,0.06537239,101560.0,101550.0,0.70739177]
[1737942580595,0.06537239,101560.0,101550.0,0.79361709]
[1737942580789,0.08779796,101570.0,101550.0,0.97118076]
[1737942580989,0.08794545,101570.0,101560.0,0.70664038]
[1737942581192,0.08794545,101570.0,101560.0,0.72203619]
[1737942581385,0.08794545,101570.0,101560.0,0.76514882]
[1737942582096,0.08794545,101570.0,101560.0,0.76514243]
[1737942583198,0.08794545,101570.0,101560.0,0.72203619]
[1737942583896,0.08794545,101570.0,101560.0,0.77753619]
[1737942585290,0.08794545,101570.0,101560.0,1.07169569]
[1737942585490,0.00014749,101570.0,101560.0,1.36706653]
[1737942586099,0.31344466,101590.0,101580.0,0.196997]
[1737942586294,0.31344466,101590.0,101580.0,0.21239281]
[1737942586600,0.11646766,101590.0,101580.0,0.21239281]
[1737942587299,0.12246766,101590.0,101580.0,0.57319211]
[1737942588500,0.12446766,101590.0,101580.0,0.66629649]
[1737942589903,0.008,101590.0,101580.0,0.66629649]
[1737942590898,0.11661515,101600.0,101590.0,0.196977]
[1737942591104,0.11661515,101600.0,101590.0,0.72017649]
[1737942591301,0.11661515,101600.0,101590.0,0.72016833]
[1737942591493,0.11661515,101600.0,101590.0,2.22016833]
[1737942592103,0.12061515,101600.0,101590.0,2.22016833]
[1737942592695,0.11661515,101600.0,101590.0,2.22016833]
[1737942593000,0.12561515,101600.0,101590.0,2.22116833]
[1737942593391,0.11661515,101600.0,101590.0,2.12706395]
[1737942593600,0.11661515,101600.0,101590.0,0.72116833]
[1737942594001,0.11661515,101600.0,101590.0,0.77626833]
[1737942594508,0.09808099,101600.0,101590.0,0.783362]
[1737942594806,0.196946,101610.0,101590.0,0.586385]
[1737942595005,0.196946,101610.0,101600.0,0.196958]
[1737942595206,0.196946,101610.0,101600.0,0.5731498]
[1737942595410,0.301368,101620.0,101610.0,0.196939]
[1737942595701,0.39461987,101620.0,101610.0,0.5731308]
[1737942595903,0.39461987,101620.0,101610.0,0.0153918]
[1737942595904,0.75541987,101620.0,101610.0,0.0153918]
[1737942596500,0.75541987,101620.0,101610.0,0.2123308]
[1737942596698,0.10658749,101620.0,101610.0,0.2123308]
[1737942596914,0.11158749,101620.0,101610.0,0.21323898]
[1737942597094,0.00714749,101620.0,101610.0,0.21323898]
[1737942598300,0.10025187,101620.0,101610.0,0.21323898]
[1737942598707,0.20461187,101620.0,101610.0,0.21323898]
[1737942599208,0.11150749,101620.0,101610.0,0.21323898]
[1737942599698,0.11150749,101620.0,101610.0,0.57403898]
[1737942599899,0.00714749,101620.0,101610.0,0.66714336]
[1737942600613,0.00714749,101620.0,101610.0,0.57403898]
[1737942601910,0.00714749,101620.0,101610.0,0.66714336]
[1737942602502,0.00714749,101620.0,101610.0,0.57403898]
[1737942603306,0.00714749,101620.0,101610.0,0.58180426]
[1737942603504,0.10025187,101620.0,101610.0,0.21323898]
[1737942603703,0.40777087,101620.0,101610.0,0.21323898]
[1737942603902,0.76857087,101620.0,101610.0,0.01629998]
[1737942604110,0.76857087,101620.0,101610.0,0.01639083]
[1737942604901,0.40777087,101620.0,101610.0,0.01639083]
[1737942605712,0.76857087,101620.0,101610.0,0.01639083]
[1737942605910,0.40777087,101620.0,101610.0,0.01639083]
[1737942607209,0.415303,101620.0,101610.0,0.01639083]
[1737942608805,0.12527962,101620.0,101610.0,0.21332983]
[1737942609510,0.11774749,101620.0,101610.0,0.21332983]
[1737942609722,0.00714749,101620.0,101610.0,0.66723421]
[1737942610011,0.00714749,101620.0,101610.0,0.72243421]
[1737942611110,0.00714749,101620.0,101610.0,0.62932983]
[1737942611818,0.00714749,101620.0,101610.0,0.72243421]
[1737942612117,0.00714749,101620.0,101610.0,0.62932983]
[1737942613815,0.00714749,101620.0,101610.0,0.72243421]
[1737942615810,0.00714749,101620.0,101610.0,0.72243263]
[1737942617610,0.00714749,101620.0,101610.0,0.62932825]
[1737942617805,0.29717087,101620.0,101610.0,0.62932825]
[1737942618509,0.20406649,101620.0,101610.0,0.62932825]
[1737942619111,0.00714749,101620.0,101610.0,0.613939]
[1737942619307,0.00714749,101620.0,101610.0,0.62932919]
[1737942620222,0.00714749,101620.0,101610.0,0.62932914]
[1737942621519,0.65797087,101620.0,101610.0,0.01639014]
[1737942621817,0.29717087,101620.0,101610.0,0.001]
[1737942622017,0.29717087,101620.0,101610.0,0.01638017]
[1737942622322,0.10025187,101620.0,101610.0,0.21331917]
[1737942622516,0.00714749,101620.0,101610.0,0.57411917]
[1737942623413,0.00714749,101620.0,101610.0,0.558739]
[1737942625016,0.00714749,101620.0,101610.0,0.65184338]
[1737942625419,0.00714749,101620.0,101610.0,0.558739]
[1737942627125,0.00259377,101620.0,101610.0,0.558739]
[1737942627513,0.00259377,101620.0,101610.0,0.001]
[1737942627715,0.65341715,101620.0,101610.0,0.001]
[1737942627914,0.196939,101610.0,101600.0,0.52991414]
[1737942628119,0.196958,101600.0,101590.0,0.35280495]
[1737942628315,0.87272238,101600.0,101590.0,0.35280495]
[1737942629221,0.87272238,101600.0,101590.0,0.36819353]
[1737942629522,0.87272238,101600.0,101590.0,0.36919353]
[1737942629719,0.87272238,101600.0,101590.0,0.36918194]
[1737942631325,0.92782238,101600.0,101590.0,0.36918194]
[1737942632323,1.22782238,101600.0,101590.0,0.36918194]
[1737942632518,0.197016,101570.0,101560.0,1.38005453]
[1737942632726,1.01172038,101570.0,101560.0,1.38005453]
[1737942633117,1.18322038,101570.0,101560.0,1.38005453]
[1737942633313,1.18322038,101570.0,101560.0,1.39545571]
[1737942633919,1.18322038,101570.0,101560.0,0.01540118]
[1737942635226,1.18322038,101570.0,101560.0,0.01640118]
[1737942635430,1.19066579,101570.0,101560.0,0.02040118]
[1737942636120,1.19066579,101570.0,101560.0,0.01640118]
[1737942638026,1.33679003,101570.0,101560.0,0.01640118]
[1737942640128,1.44091003,101570.0,101560.0,0.01640118]
[1737942640931,0.80449003,101570.0,101560.0,0.01640118]
[1737942641125,0.90861003,101570.0,101560.0,0.01640118]
[1737942641525,1.26941003,101570.0,101560.0,0.01640118]
[1737942642228,1.12328579,101570.0,101560.0,0.01640118]
[1737942642631,0.56526141,101570.0,101560.0,0.01640118]
[1737942642825,0.66938141,101570.0,101550.0,0.65095438]
[1737942643132,0.66938141,101570.0,101550.0,0.55785]
[1737942643327,0.76248579,101570.0,101550.0,0.55785]
[1737942643920,0.36824541,101570.0,101550.0,0.45405187]
[1737942644128,0.3608,101570.0,101560.0,0.197036]
[1737942644328,0.3608,101570.0,101560.0,0.29014038]
[1737942644535,0.3608,101570.0,101560.0,0.197036]
[1737942645135,0.46506749,101580.0,101560.0,0.65094038]
[1737942645433,0.00014749,101580.0,101570.0,0.732116]
[1737942645933,0.00787149,101580.0,101570.0,0.732116]
[1737942646136,0.00014749,101580.0,101570.0,0.732116]
[1737942646336,0.00014749,101580.0,101570.0,0.82522038]
[1737942646832,0.00114749,101580.0,101570.0,0.82522038]
[1737942647130,0.65084938,101610.0,101570.0,0.72671038]
[1737942647329,0.10408,101610.0,101590.0,0.29006838]
[1737942647524,0.10408,101610.0,101600.0,0.305258]
[1737942647725,0.68665425,101630.0,101610.0,0.196939]
[1737942647939,0.89131293,101630.0,101610.0,0.196939]
[1737942648122,0.89146042,101630.0,101610.0,0.19708649]
[1737942648735,0.17443685,101620.0,101610.0,0.19708649]
[1737942649238,0.17443685,101620.0,101610.0,0.19808649]
[1737942649625,0.01114749,101630.0,101620.0,0.196919]
[1737942649830,0.01114749,101630.0,101620.0,0.29002338]
[1737942650029,0.01114749,101630.0,101620.0,0.65082338]
[1737942650233,0.01114749,101630.0,101620.0,0.196919]
[1737942650422,0.28922737,101640.0,101620.0,0.557719]
[1737942650738,0.19612299,101640.0,101630.0,0.34580438]
[1737942650932,0.19612299,101640.0,101630.0,0.2527]
[1737942651124,0.19612299,101640.0,101630.0,0.34580438]
[1737942651331,0.23258247,101650.0,101640.0,0.196881]
[1737942651929,0.23258247,101650.0,101640.0,1.696881]
[1737942652425,0.23258247,101650.0,101640.0,2.057681]
[1737942652624,0.23258247,101650.0,101640.0,0.21211779]
[1737942652827,0.23258247,101650.0,101640.0,0.12883679]
[1737942652828,0.33068685,101650.0,101640.0,0.12883679]
[1737942653035,0.33268685,101650.0,101640.0,0.12883679]
[1737942653237,0.33268685,101650.0,101640.0,0.32571779]
[1737942653428,0.23958247,101650.0,101640.0,0.41882217]
[1737942653633,0.007,101650.0,101640.0,0.77962217]
[1737942654438,0.002,101650.0,101640.0,0.77862217]
[1737942654638,0.00014749,101660.0,101640.0,0.77862217]
[1737942654939,0.00014749,101660.0,101640.0,0.58174117]
[1737942655246,0.00014749,101660.0,101650.0,0.28996538]
[1737942655542,0.00014749,101660.0,101650.0,0.21206693]
[1737942658035,0.36594749,101660.0,101650.0,0.01520593]
[1737942658236,0.45905187,101660.0,101650.0,0.01520593]
[1737942658448,0.00514749,101660.0,101650.0,0.01520593]
[1737942660136,0.09825187,101660.0,101650.0,0.01520593]
[1737942660538,0.00514749,101660.0,101650.0,0.01520593]
[1737942662242,0.45905187,101660.0,101650.0,0.01520593]
[1737942662438,0.45905187,101660.0,101650.0,0.01532722]
[1737942662647,0.09825187,101660.0,101650.0,0.01532722]
[1737942665143,0.20985187,101660.0,101650.0,0.01532722]
[1737942666248,0.20985187,101660.0,101650.0,0.01528316]
[1737942666750,0.00514749,101660.0,101650.0,0.21214416]
[1737942667751,0.09825187,101660.0,101650.0,0.21214416]
[1737942667940,0.09825187,101660.0,101650.0,0.01528316]
[1737942668540,0.09825187,101660.0,101640.0,0.67813314]
[1737942668951,0.15215187,101660.0,101640.0,0.67813314]
[1737942670252,0.09310438,101650.0,101640.0,0.67813314]
[1737942670450,0.20230438,101650.0,101640.0,0.56553314]
[1737942671150,0.1092,101650.0,101640.0,0.56553314]
[1737942671352,0.1102,101650.0,101640.0,0.56553314]
[1737942672752,0.001,101650.0,101640.0,0.65863752]
[1737942672949,0.00014749,101660.0,101640.0,0.5548689]
[1737942673150,0.00014749,101660.0,101650.0,0.76286538]
[1737942673751,0.00014749,101660.0,101650.0,0.669761]
[1737942674351,0.00014749,101660.0,101650.0,2.169761]
[1737942674548,0.00414749,101660.0,101650.0,2.169761]
[1737942674951,0.00514749,101660.0,101650.0,2.169761]
[1737942675858,0.00514749,101660.0,101650.0,2.26286538]
[1737942676051,0.22732823,101680.0,101670.0,0.196822]
[1737942676251,0.17052823,101680.0,101670.0,0.557622]
[1737942676453,0.46043561,101680.0,101670.0,0.196822]
[1737942677059,0.26363261,101680.0,101670.0,0.196822]
[1737942677257,0.26863261,101680.0,101670.0,0.196822]
[1737942677554,0.13012823,101680.0,101670.0,0.65172638]
[1737942677743,0.13012823,101680.0,101670.0,0.30621875]
[1737942677947,0.13012823,101680.0,101670.0,0.66701875]
[1737942678160,0.13012823,101680.0,101670.0,0.65172638]
[1737942678363,0.32017781,101690.0,101680.0,0.196803]
[1737942678655,1.31191135,101730.0,101720.0,0.196726]
[1737942678861,0.1659,101760.0,101720.0,0.90780876]
[1737942679059,0.00147481,101770.0,101750.0,0.3608]
[1737942679257,0.00147481,101770.0,101760.0,0.28975238]
[1737942679452,0.00147481,101770.0,101760.0,0.65055238]
[1737942679655,0.65053338,101770.0,101760.0,1.51530636]
[1737942679862,0.65053338,101770.0,101760.0,0.01530636]
[1737942680054,0.196648,101760.0,101750.0,0.00014749]
[1737942680260,0.65055238,101760.0,101750.0,0.00014749]
[1737942680559,0.69670416,101760.0,101750.0,0.00014749]
[1737942680748,0.75180416,101760.0,101750.0,0.00014749]
[1737942681255,0.69741232,101760.0,101740.0,0.00834604]
[1737942681451,0.80642416,101750.0,101730.0,0.19817428]
[1737942681661,0.13925616,101740.0,101730.0,0.19817428]
[1737942681865,0.80642416,101750.0,101730.0,0.19817428]
[1737942682058,0.1097,101750.0,101730.0,0.55897428]
[1737942682255,0.1097,101750.0,101730.0,0.00147428]
[1737942682456,0.10984749,101750.0,101740.0,0.196687]
[1737942683954,0.10984749,101750.0,101730.0,0.53811227]
[1737942684153,0.10984749,101750.0,101730.0,0.73481127]
[1737942684351,0.11084749,101750.0,101730.0,0.73481127]
[1737942685166,0.3608,101740.0,101730.0,0.18556442]
[1737942685367,0.91125765,101750.0,101730.0,0.18556442]
[1737942685869,0.69674316,101740.0,101730.0,0.18556442]
[1737942686568,0.3608,101740.0,101730.0,0.18556442]
[1737942686950,0.3608,101740.0,101730.0,0.38227042]
[1737942687159,0.00014749,101750.0,101740.0,0.196687]
[1737942688069,0.00014749,101750.0,101740.0,0.69674316]
[1737942688364,0.00114749,101750.0,101740.0,0.613287]
[1737942688860,0.00114749,101750.0,101740.0,2.113287]
[1737942689258,0.00114749,101750.0,101740.0,2.25254316]
[1737942689865,0.00214749,101750.0,101740.0,2.25254316]
[1737942690360,0.557427,101780.0,101760.0,0.196632]
[1737942690565,0.661067,101780.0,101760.0,0.557432]
[1737942691468,0.6611653,101780.0,101760.0,0.55757949]
[1737942691658,0.80042146,101780.0,101760.0,0.55757949]
[1737942691967,0.80028516,101770.0,101760.0,0.00014749]
[1737942692565,0.661029,101770.0,101760.0,0.00014749]
[1737942693069,0.557429,101770.0,101760.0,0.00114749]
[1737942693269,0.661029,101770.0,101760.0,0.00114749]
[1737942693456,0.661029,101770.0,101760.0,0.00014749]
[1737942693657,0.661029,101770.0,101760.0,0.00114749]
[1737942693858,0.665029,101770.0,101760.0,0.00114749]
[1737942694765,0.3648,101770.0,101760.0,0.00114749]
[1737942695067,0.3648,101770.0,101760.0,0.19779549]
[1737942695863,0.70068516,101770.0,101760.0,0.00114749]
[1737942697172,0.561429,101770.0,101760.0,0.00114749]
[1737942697869,0.004,101770.0,101760.0,0.00114749]
[1737942698060,0.10756,101770.0,101760.0,0.00114749]
[1737942698773,0.004,101770.0,101760.0,0.00114749]
[1737942700068,0.004,101770.0,101760.0,0.19779549]
[1737942701063,0.70068516,101770.0,101760.0,0.00114749]
[1737942701663,0.196674,101750.0,101730.0,0.36227428]
[1737942701863,0.196687,101740.0,101730.0,0.36227428]
[1737942702061,0.196687,101740.0,101730.0,0.00989452]
[1737942704368,0.50020365,101750.0,101730.0,0.00989452]
[1737942704667,0.00014749,101750.0,101730.0,0.14915068]
[1737942704967,0.00014749,101750.0,101740.0,0.196687]
[1737942705266,0.36094749,101750.0,101740.0,0.33594316]
[1737942705462,0.00014749,101750.0,101740.0,0.196687]
[1737942705868,0.00014749,101750.0,101740.0,0.69674316]
[1737942706060,0.00014749,101750.0,101740.0,0.39144316]
[1737942706261,0.5589078,101770.0,101750.0,0.196665]
[1737942706574,0.5589078,101770.0,101740.0,0.669981]
[1737942706575,0.557449,101760.0,101740.0,0.669981]
[1737942706766,0.001,101750.0,101740.0,0.309181]
[1737942706962,0.001,101750.0,101740.0,2.30923716]
[1737942707360,9.83e-05,101760.0,101740.0,2.30923716]
[1737942707564,9.83e-05,101760.0,101740.0,2.35227214]
[1737942707868,0.001,101750.0,101740.0,2.52796264]
[1737942708264,0.001,101750.0,101740.0,2.48492766]
[1737942708463,0.001,101750.0,101740.0,2.52796272]
[1737942708664,0.001,101750.0,101740.0,2.48492766]
[1737942708876,0.001,101750.0,101740.0,2.52796309]
[1737942709072,0.001,101750.0,101740.0,2.52796296]
[1737942709266,0.002,101750.0,101740.0,2.48492766]
[1737942709664,0.001,101750.0,101740.0,2.3456715]
[1737942710270,0.002,101750.0,101740.0,2.3456715]
[1737942710468,0.002,101750.0,101740.0,2.12412766]
[1737942710667,0.002,101750.0,101740.0,2.48492766]
[1737942711772,0.002,101750.0,101740.0,2.93068498]
[1737942711972,0.002,101750.0,101740.0,2.97371785]
[1737942712470,9.83e-05,101760.0,101750.0,0.196668]
[1737942712774,0.1967463,101760.0,101750.0,0.557468]
[1737942713777,0.1987463,101760.0,101750.0,0.557468]
[1737942714073,0.1997463,101760.0,101750.0,0.558468]
[1737942715769,0.1997463,101760.0,101750.0,1.17991582]
[1737942716672,0.5605463,101760.0,101750.0,0.62244782]
[1737942717068,0.1997463,101760.0,101750.0,0.62244782]
[1737942717274,0.5605463,101760.0,101750.0,0.63109926]
[1737942718573,0.1997463,101760.0,101750.0,0.63109926]
[1737942719170,0.80324246,101760.0,101750.0,0.62244782]
[1737942719472,0.44244246,101760.0,101750.0,0.62244782]
[1737942719972,0.80324246,101760.0,101750.0,0.41288885]
[1737942722676,0.75681629,101760.0,101750.0,0.41288885]
[1737942723275,0.39601629,101760.0,101750.0,0.41288885]
[1737942724078,0.48338108,101760.0,101750.0,0.001]
[1737942724476,0.49211969,101760.0,101750.0,0.01626015]
[1737942724681,0.3992897,101760.0,101750.0,0.01626015]
[1737942725070,0.19390309,101760.0,101750.0,0.01626015]
[1737942725270,0.39055109,101760.0,101750.0,0.01626015]
[1737942725581,0.39055109,101760.0,101750.0,0.001]
[1737942725782,0.75135109,101760.0,101750.0,0.001]
[1737942726086,0.84418108,101760.0,101750.0,0.00054783]
[1737942726386,0.196668,101750.0,101740.0,0.41188885]
[1737942726679,0.70929799,101750.0,101740.0,0.41188885]
[1737942727670,0.70929799,101750.0,101730.0,0.64426303]
[1737942727671,0.196687,101740.0,101730.0,0.2914705]
[1737942727877,0.65031699,101740.0,101730.0,0.2914705]
[1737942728478,0.65031699,101740.0,101730.0,0.30016255]
[1737942728786,0.65031699,101740.0,101730.0,0.2914705]
[1737942729786,0.65031699,101740.0,101730.0,0.2924705]
[1737942729988,0.719837,101750.0,101730.0,0.38530049]
[1737942730286,0.660837,101750.0,101730.0,0.74980449]
[1737942730482,0.300037,101750.0,101730.0,1.11060449]
[1737942730889,0.300037,101750.0,101730.0,1.0177745]
[1737942731388,0.62130995,101750.0,101730.0,0.72645149]
[1737942731584,0.51794995,101750.0,101730.0,0.72645149]
[1737942731792,0.51794995,101750.0,101730.0,0.00114749]
[1737942731793,0.75367699,101740.0,101730.0,0.00114749]
[1737942732083,0.10336,101740.0,101730.0,0.19785349]
[1737942732282,0.10336,101740.0,101730.0,0.00114749]
[1737942732883,0.10336,101740.0,101730.0,0.00014749]
[1737942732884,0.300047,101740.0,101730.0,0.00014749]
[1737942733087,0.80010652,101740.0,101730.0,0.00114749]
[1737942733590,0.660847,101740.0,101730.0,0.00114749]
[1737942734581,0.46416,101740.0,101730.0,0.00114749]
[1737942734784,0.300047,101740.0,101730.0,0.00114749]
[1737942735083,0.38829181,101740.0,101730.0,0.00114749]
[1737942735485,0.19160481,101740.0,101730.0,0.00114749]
[1737942735990,0.38829181,101740.0,101730.0,0.00114749]
[1737942736192,0.74909181,101740.0,101730.0,0.00114749]
[1737942736690,0.38829181,101740.0,101730.0,0.00114749]
[1737942736991,0.19160481,101740.0,101730.0,0.00114749]
[1737942737185,0.08824481,101740.0,101730.0,0.19785349]
[1737942737685,0.08824481,101740.0,101730.0,0.55865349]
[1737942737886,0.08824481,101740.0,101730.0,0.19785349]
[1737942738086,0.08824481,101740.0,101730.0,0.55865349]
[1737942740088,0.08824481,101740.0,101730.0,0.69791301]
[1737942740701,0.08824481,101740.0,101730.0,2.19791301]
[1737942741494,0.08824481,101740.0,101730.0,2.05865349]
[1737942741692,0.42419133,101740.0,101730.0,0.55865349]
[1737942742393,0.69674652,101740.0,101730.0,0.60097761]
[1737942744095,0.31656449,101750.0,101730.0,0.96177761]
[1737942744395,0.88834063,101760.0,101740.0,0.196687]
[1737942744595,0.88834063,101760.0,101740.0,0.362687]
[1737942744892,0.19162311,101760.0,101740.0,0.362687]
[1737942745090,0.55242311,101760.0,101740.0,0.723487]
[1737942745691,0.55242311,101760.0,101740.0,0.5268]
[1737942745998,0.19162311,101760.0,101750.0,0.557468]
[1737942746699,0.25028324,101760.0,101750.0,0.557468]
[1737942747391,0.24498463,101760.0,101750.0,0.557468]
[1737942747797,0.14790494,101760.0,101750.0,0.557468]
[1737942748591,0.14890494,101760.0,101750.0,0.557468]
[1737942750209,0.17584281,101770.0,101760.0,0.196648]
[1737942750396,0.17584281,101770.0,101760.0,0.557448]
[1737942750596,0.16624642,101770.0,101760.0,0.557448]
[1737942750894,0.30550594,101770.0,101760.0,0.557448]
[1737942751199,0.50213494,101770.0,101750.0,0.56672409]
[1737942751397,0.50413494,101770.0,101750.0,0.56672409]
[1737942751998,0.30750594,101770.0,101750.0,0.56672409]
[1737942752206,0.30750594,101770.0,101760.0,0.3608]
[1737942752394,0.14125952,101770.0,101760.0,0.3608]
[1737942752795,0.14125952,101770.0,101760.0,0.3618]
[1737942754003,0.13925952,101770.0,101760.0,0.3618]
[1737942754307,0.14025952,101770.0,101760.0,0.3618]
[1737942754606,0.09379513,101770.0,101760.0,0.3618]
[1737942754907,0.65222413,101770.0,101760.0,0.001]
[1737942755292,0.65222413,101770.0,101750.0,0.00014749]
[1737942755293,0.196648,101760.0,101750.0,0.00014749]
[1737942755504,0.90823826,101760.0,101750.0,0.00014749]
[1737942756697,0.86191508,101760.0,101750.0,0.00014749]
[1737942759904,0.22073832,101770.0,101750.0,0.19681549]
[1737942760102,0.77817132,101770.0,101750.0,0.36501549]
[1737942760695,0.58153832,101770.0,101750.0,0.36501549]
[1737942761006,0.465,101770.0,101750.0,0.72581549]
[1737942761208,0.661631,101770.0,101750.0,0.36501549]
[1737942761398,0.13926708,101760.0,101750.0,0.16834749]
[1737942761598,0.33591508,101760.0,101750.0,0.00014749]
[1737942761793,0.80290408,101770.0,101750.0,0.00014749]
[1737942762004,0.196648,101760.0,101750.0,0.00014749]
[1737942763202,0.197648,101760.0,101750.0,0.00014749]
[1737942763803,0.001,101760.0,101750.0,0.00014749]
[1737942764008,0.001,101760.0,101750.0,0.19681549]